bitfinex/quotes_BTCUSD_20250526
["timestamp","ask_amount","ask_price","bid_price","bid_amount"]
[1748280172004,0.34023105,109380.0,109370.0,1.12919733]
[1748280172235,0.34023105,109380.0,109370.0,1.16009733]
[1748280172673,0.02028429,109380.0,109370.0,1.16924052]
[1748280172893,0.34937307,109380.0,109370.0,1.16924052]
[1748280173300,0.34023105,109380.0,109370.0,1.16924052]
[1748280173776,0.34023105,109380.0,109370.0,1.17838362]
[1748280173990,0.34023105,109380.0,109370.0,1.17938362]
[1748280174367,0.33823105,109380.0,109370.0,1.17938362]
[1748280174572,0.19199105,109380.0,109370.0,1.17024052]
[1748280175497,0.19199105,109380.0,109370.0,1.18117741]
[1748280175710,0.19199105,109380.0,109370.0,1.19032035]
[1748280175915,0.19199105,109380.0,109370.0,1.18117741]
[1748280176120,0.19199105,109380.0,109370.0,1.19032043]
[1748280177244,0.19199105,109380.0,109370.0,1.19946337]
[1748280177950,0.19199105,109380.0,109370.0,1.18117741]
[1748280178075,0.19199105,109380.0,109370.0,1.14113422]
[1748280179459,0.18284878,109380.0,109370.0,0.94912545]
[1748280180395,0.18284878,109380.0,109370.0,1.13199095]
[1748280180601,0.18284878,109380.0,109370.0,1.14113422]
[1748280180842,0.18284878,109380.0,109370.0,0.94912545]
[1748280181453,0.18284878,109380.0,109370.0,1.14113422]
[1748280182018,0.18284878,109380.0,109370.0,1.15027741]
[1748280183842,0.18284878,109380.0,109370.0,0.94912545]
[1748280184259,0.18284878,109380.0,109370.0,1.13199095]
[1748280184476,0.18284878,109380.0,109370.0,1.15027741]
[1748280186443,0.18284878,109380.0,109370.0,1.14113422]
[1748280187029,0.18284878,109380.0,109370.0,1.15027741]
[1748280187204,0.18284878,109380.0,109370.0,1.14113422]
[1748280187402,0.18284878,109380.0,109370.0,0.95826872]
[1748280187615,0.18284878,109380.0,109370.0,0.75849981]
[1748280187834,0.18284878,109380.0,109370.0,0.94136531]
[1748280189264,0.18284878,109380.0,109370.0,0.75849981]
[1748280189474,0.21534878,109380.0,109370.0,0.79595132]
[1748280190908,0.21534878,109380.0,109370.0,0.80962626]
[1748280193989,0.21534878,109380.0,109370.0,0.88305398]
[1748280195262,0.24714878,109380.0,109370.0,0.88305398]
[1748280197247,0.21534878,109380.0,109370.0,0.88305398]
[1748280197803,0.22449121,109380.0,109370.0,1.09334862]
[1748280197965,0.20113339,109380.0,109370.0,1.08420577]
[1748280198757,0.20113339,109380.0,109370.0,1.08781276]
[1748280199776,0.23333339,109380.0,109370.0,1.08781276]
[1748280199989,0.23333339,109380.0,109370.0,1.05036125]
[1748280203107,0.00914193,109380.0,109370.0,3.47751787]
[1748280203319,0.01828353,109380.0,109370.0,3.73379756]
[1748280203550,0.00914168,109380.0,109370.0,3.34810224]
[1748280203765,0.2102564,109390.0,109380.0,0.20113323]
[1748280203974,0.2102564,109390.0,109380.0,2.60993987]
[1748280204134,0.2102564,109390.0,109380.0,2.40394287]
[1748280205314,0.20111522,109390.0,109380.0,2.08141287]
[1748280205527,0.23231522,109390.0,109380.0,2.10476498]
[1748280205733,0.23431522,109390.0,109380.0,2.10476498]
[1748280206579,0.24763228,109390.0,109380.0,0.02335211]
[1748280206767,0.24763228,109390.0,109380.0,0.84334275]
[1748280206965,0.24763228,109390.0,109380.0,0.83969289]
[1748280209135,0.24763228,109390.0,109380.0,0.97761789]
[1748280210683,0.24763228,109390.0,109380.0,0.83969289]
[1748280212078,0.24763228,109390.0,109380.0,0.56628644]
[1748280213065,0.24763228,109390.0,109380.0,0.72032244]
[1748280213277,0.24763228,109390.0,109380.0,0.56628644]
[1748280213494,0.24763228,109390.0,109380.0,0.71760244]
[1748280213898,0.24763228,109390.0,109380.0,0.56628644]
[1748280214098,0.24763228,109390.0,109380.0,0.71983244]
[1748280214332,0.24763228,109390.0,109380.0,0.90268122]
[1748280214537,0.24763228,109390.0,109380.0,0.91182365]
[1748280215065,0.24763228,109390.0,109380.0,0.71983244]
[1748280216582,0.24763228,109390.0,109380.0,0.01970225]
[1748280216800,0.24763228,109390.0,109380.0,0.56628644]
[1748280231321,0.24763228,109390.0,109380.0,0.58088151]
[1748280233862,0.24763228,109390.0,109380.0,0.5699363]
[1748280234062,0.24763228,109390.0,109380.0,0.84316733]
[1748280240358,0.24701228,109390.0,109380.0,0.84316733]
[1748280254416,0.24701228,109390.0,109380.0,0.02335211]
[1748280254656,0.24701228,109390.0,109380.0,0.84316733]
[1748280255365,0.24701228,109390.0,109380.0,0.40990761]
[1748280255504,0.24701228,109390.0,109380.0,0.81981522]
[1748280255959,0.25519105,109380.0,109370.0,0.03741717]
[1748280256168,0.26436985,109360.0,109350.0,0.43733761]
[1748280256382,0.41056985,109360.0,109350.0,0.01400989]
[1748280256593,0.24612537,109350.0,109340.0,0.40990761]
[1748280257671,0.24612537,109350.0,109320.0,1.23988984]
[1748280257672,0.20122538,109330.0,109320.0,1.03434916]
[1748280257884,0.20122538,109330.0,109320.0,1.50668208]
[1748280258095,0.21037132,109330.0,109320.0,1.56284114]
[1748280258297,0.21037132,109330.0,109320.0,1.46414846]
[1748280258517,0.21037132,109330.0,109320.0,1.47329566]
[1748280258718,0.21037132,109330.0,109320.0,0.91698411]
[1748280258933,0.1830233,109330.0,109320.0,1.28297957]
[1748280259145,0.2151233,109330.0,109320.0,1.28297957]
[1748280259345,0.2151233,109330.0,109320.0,1.46592871]
[1748280259549,0.2151233,109330.0,109320.0,1.47507608]
[1748280259785,0.1830233,109330.0,109320.0,1.48422336]
[1748280259992,0.1830233,109330.0,109320.0,1.47507608]
[1748280260189,0.1830233,109330.0,109320.0,1.48922336]
[1748280260386,0.1830233,109330.0,109320.0,1.50318954]
[1748280260559,0.1830233,109330.0,109320.0,1.51233666]
[1748280260788,0.1830233,109330.0,109320.0,1.50318954]
[1748280261158,0.1830233,109330.0,109320.0,1.49226192]
[1748280261887,0.1830233,109330.0,109320.0,2.0485733]
[1748280263269,0.19216975,109330.0,109320.0,2.0485733]
[1748280263672,0.19216975,109330.0,109320.0,1.97606027]
[1748280264379,0.20131595,109330.0,109320.0,1.97606027]
[1748280264606,0.20131595,109330.0,109320.0,1.98520714]
[1748280265462,0.21046248,109330.0,109320.0,1.98520714]
[1748280267134,0.00923685,109330.0,109320.0,1.84993476]
[1748280267350,0.02752941,109330.0,109320.0,1.99617476]
[1748280267578,0.02752933,109330.0,109320.0,1.99617476]
[1748280267797,0.03667569,109330.0,109320.0,0.90184606]
[1748280268137,0.03667569,109330.0,109320.0,1.99617476]
[1748280268360,0.03667569,109330.0,109320.0,2.00489236]
[1748280269167,0.04582214,109330.0,109320.0,0.76432366]
[1748280269371,0.04582214,109330.0,109320.0,2.00489236]
[1748280269548,0.00923685,109330.0,109320.0,2.00489236]
[1748280269962,0.01838296,109330.0,109320.0,2.00489236]
[1748280270186,0.00923685,109330.0,109320.0,2.00489236]
[1748280270569,9.09e-05,109330.0,109320.0,2.00489236]
[1748280270771,0.00923685,109330.0,109320.0,2.00489236]
[1748280271772,0.03933685,109330.0,109320.0,2.00489236]
[1748280272127,0.04848288,109330.0,109320.0,2.00489236]
[1748280272348,9.09e-05,109330.0,109320.0,2.00489236]
[1748280272756,0.00923676,109330.0,109320.0,2.00489236]
[1748280273767,0.02385414,109340.0,109320.0,2.09969624]
[1748280273989,0.24957779,109350.0,109340.0,0.19206128]
[1748280274205,0.24957771,109350.0,109340.0,0.75751644]
[1748280274545,0.25872265,109350.0,109340.0,0.75751644]
[1748280274760,0.24957821,109350.0,109340.0,0.74837116]
[1748280274982,0.24957821,109350.0,109340.0,0.75708876]
[1748280275700,0.24043352,109350.0,109340.0,0.75708876]
[1748280275913,0.23228874,109350.0,109340.0,0.73879762]
[1748280276183,0.22314388,109350.0,109340.0,0.73879762]
[1748280276444,0.22314388,109350.0,109340.0,0.74794332]
[1748280276666,0.21399894,109350.0,109340.0,0.0087176]
[1748280276892,0.24579894,109350.0,109340.0,0.0087176]
[1748280277519,0.25416128,109340.0,109330.0,0.89588195]
[1748280278890,0.25416128,109340.0,109330.0,0.69703195]
[1748280279102,0.07124561,109340.0,109330.0,0.90457235]
[1748280279314,0.27245251,109340.0,109330.0,0.92386516]
[1748280279517,0.27245251,109340.0,109330.0,0.91471888]
[1748280279724,0.27245251,109340.0,109330.0,0.92386533]
[1748280279950,0.27245251,109340.0,109330.0,0.93301169]
[1748280280596,0.27245251,109340.0,109330.0,0.92386533]
[1748280280801,0.26330698,109340.0,109330.0,0.92386533]
[1748280281231,0.26330698,109340.0,109330.0,0.93301161]
[1748280281411,0.23300698,109340.0,109330.0,0.93301161]
[1748280281612,0.26570698,109340.0,109330.0,0.93301161]
[1748280281819,0.26570698,109340.0,109330.0,0.92386533]
[1748280282146,0.26570698,109340.0,109330.0,0.93301169]
[1748280284535,0.25656137,109340.0,109330.0,0.93301169]
[1748280285712,0.25656137,109340.0,109330.0,1.28393931]
[1748280287248,0.24741567,109340.0,109330.0,1.27479295]
[1748280287775,0.24741567,109340.0,109330.0,1.23243095]
[1748280290033,0.24741567,109340.0,109330.0,1.23609316]
[1748280290232,0.24741567,109340.0,109330.0,1.22694671]
[1748280295222,0.25656128,109340.0,109330.0,1.23609307]
[1748280296416,0.25656128,109340.0,109330.0,1.22694671]
[1748280296946,0.25656128,109340.0,109330.0,1.1035508]
[1748280297163,0.24741567,109340.0,109330.0,1.1035508]
[1748280297931,0.24741567,109340.0,109330.0,0.91147178]
[1748280298143,0.24741567,109340.0,109330.0,0.02430743]
[1748280298321,1.03812558,109340.0,109330.0,0.02430743]
[1748280298521,1.03812558,109340.0,109330.0,0.0097176]
[1748280299504,1.05266643,109340.0,109330.0,0.0097176]
[1748280299721,1.05266643,109340.0,109330.0,0.0087176]
[1748280299939,1.21918794,109340.0,109330.0,0.0087176]
[1748280300348,0.25427885,109330.0,109320.0,0.00049841]
[1748280300588,1.03726876,109330.0,109320.0,0.00049841]
[1748280301435,0.2814776,109300.0,109290.0,1.10840251]
[1748280301629,0.2814776,109300.0,109290.0,1.12210471]
[1748280302025,0.2814776,109300.0,109290.0,1.12911651]
[1748280303729,0.27232923,109300.0,109290.0,1.12096688]
[1748280303962,0.27232923,109300.0,109290.0,1.13011659]
[1748280304223,0.26318061,109300.0,109290.0,1.12096688]
[1748280304425,0.26318061,109300.0,109290.0,1.13926631]
[1748280304585,0.08934653,109300.0,109290.0,1.13926589]
[1748280304794,0.08019749,109300.0,109290.0,1.14841527]
[1748280304999,0.08934653,109300.0,109290.0,1.14841535]
[1748280305400,0.08934645,109300.0,109290.0,1.14841485]
[1748280305593,0.26318044,109300.0,109290.0,0.5796682]
[1748280305796,0.26318044,109300.0,109290.0,0.75169919]
[1748280306001,0.26318044,109300.0,109290.0,0.76084915]
[1748280306215,0.32242459,109300.0,109290.0,0.02345451]
[1748280306371,0.32242459,109300.0,109290.0,0.00975231]
[1748280306668,0.41197015,109300.0,109290.0,0.00975231]
[1748280307101,0.9591345,109300.0,109290.0,0.001]
[1748280307291,0.41197015,109300.0,109290.0,0.001]
[1748280307939,0.352726,109300.0,109290.0,0.001]
[1748280308139,0.41860948,109300.0,109290.0,0.74031366]
[1748280308342,0.40946078,109300.0,109290.0,0.54816435]
[1748280308546,0.40946078,109300.0,109290.0,0.74946329]
[1748280308755,0.08934637,109300.0,109290.0,0.75861275]
[1748280308962,0.38800898,109300.0,109290.0,0.75861292]
[1748280309157,0.2104289,109300.0,109290.0,0.75761292]
[1748280309357,0.2114289,109300.0,109290.0,0.75761292]
[1748280309572,0.01929733,109300.0,109290.0,0.78463912]
[1748280309786,0.01929733,109300.0,109290.0,1.89287312]
[1748280309978,0.01929733,109300.0,109290.0,1.71906271]
[1748280309979,0.001,109300.0,109290.0,1.71906271]
[1748280310362,0.001,109300.0,109290.0,1.81228587]
[1748280310786,0.001,109300.0,109290.0,1.82325423]
[1748280310996,0.03659149,109310.0,109300.0,0.55042898]
[1748280310997,0.02744337,109310.0,109300.0,0.55042898]
[1748280311205,0.02744337,109310.0,109300.0,1.87344933]
[1748280311421,0.21971751,109310.0,109300.0,0.66334044]
[1748280311644,0.19213157,109300.0,109290.0,0.31497274]
[1748280311840,0.26358044,109300.0,109290.0,1.28749571]
[1748280312397,0.26358044,109300.0,109290.0,1.28749604]
[1748280312619,0.26358044,109300.0,109290.0,1.27472658]
[1748280312847,0.26358044,109300.0,109290.0,1.27248505]
[1748280313792,0.26358044,109300.0,109290.0,1.2723249]
[1748280315015,0.26358044,109300.0,109290.0,0.17471199]
[1748280315016,0.25443157,109300.0,109290.0,0.17471199]
[1748280315244,0.25443157,109300.0,109290.0,0.01272683]
[1748280315482,0.40075157,109300.0,109290.0,0.55989118]
[1748280315691,0.25443157,109300.0,109290.0,0.55989118]
[1748280315912,0.26358028,109300.0,109290.0,1.3874102]
[1748280316122,0.23258028,109300.0,109290.0,1.38741037]
[1748280316329,0.22443157,109300.0,109290.0,1.38741037]
[1748280316556,0.21142941,109300.0,109290.0,1.40370962]
[1748280316743,0.21142941,109300.0,109290.0,1.39456008]
[1748280317439,0.2022807,109300.0,109290.0,1.39456008]
[1748280317876,0.2022807,109300.0,109290.0,1.40853707]
[1748280318114,0.2022807,109300.0,109290.0,1.37458371]
[1748280318327,0.01014862,109300.0,109290.0,1.85372828]
[1748280318540,0.22057794,109300.0,109290.0,0.93034891]
[1748280318760,0.22972707,109300.0,109290.0,1.45270944]
[1748280318980,0.22872707,109300.0,109290.0,1.45270894]
[1748280319199,0.21957794,109300.0,109290.0,1.45270844]
[1748280319373,0.21957794,109300.0,109290.0,1.42526039]
[1748280319570,0.21957794,109300.0,109290.0,1.42707904]
[1748280319778,0.21957794,109300.0,109290.0,1.42807904]
[1748280320416,0.21042932,109300.0,109290.0,1.43722884]
[1748280320741,0.20128061,109300.0,109290.0,1.43722892]
[1748280322190,0.21042974,109300.0,109290.0,1.45552826]
[1748280322374,0.21042974,109300.0,109290.0,1.44637872]
[1748280322648,0.21042974,109300.0,109290.0,1.45552843]
[1748280322864,0.20128078,109300.0,109290.0,1.44637872]
[1748280323285,0.20128078,109300.0,109290.0,1.45552843]
[1748280323714,0.40285174,109300.0,109290.0,0.02069519]
[1748280323928,0.4923973,109300.0,109290.0,0.02069519]
[1748280324571,0.4923973,109300.0,109290.0,0.001]
[1748280325218,0.4933973,109300.0,109290.0,0.001]
[1748280325680,0.25634915,109290.0,109280.0,0.38677621]
[1748280326115,0.25634915,109290.0,109280.0,0.40055383]
[1748280326326,0.32396888,109290.0,109280.0,0.40055383]
[1748280326916,0.32396888,109290.0,109280.0,0.40170325]
[1748280327290,0.25634915,109290.0,109280.0,0.40170325]
[1748280327502,0.25634915,109290.0,109280.0,1.05907624]
[1748280327503,0.37126915,109290.0,109280.0,1.05907624]
[1748280327940,0.20129886,109290.0,109280.0,1.26039353]
[1748280328150,0.20129886,109290.0,109280.0,1.28051227]
[1748280328595,0.18298261,109300.0,109290.0,0.54129877]
[1748280328815,0.39268587,109310.0,109300.0,0.34]
[1748280329034,0.24636587,109310.0,109300.0,0.85321099]
[1748280329950,0.2460951,109310.0,109300.0,0.85321099]
[1748280330165,0.2480951,109310.0,109300.0,0.34]
[1748280330594,0.2480951,109310.0,109300.0,0.34874451]
[1748280331476,0.2510951,109310.0,109300.0,0.34874451]
[1748280335424,0.3974151,109310.0,109300.0,0.34874451]
[1748280337582,0.2510951,109310.0,109300.0,0.34874451]
[1748280337800,0.3974151,109310.0,109300.0,0.34874451]
[1748280338469,0.3974151,109310.0,109300.0,0.8619555]
[1748280338831,0.3974151,109310.0,109300.0,0.34874451]
[1748280339257,0.3974151,109310.0,109300.0,0.35971287]
[1748280340466,0.3974151,109310.0,109300.0,0.34874451]
[1748280341710,0.3974151,109310.0,109300.0,0.8619555]
[1748280342888,0.3974151,109310.0,109300.0,0.87292386]
[1748280344313,0.2510951,109310.0,109300.0,0.87292386]
[1748280345229,0.2480951,109310.0,109300.0,0.87292386]
[1748280345431,0.2460951,109310.0,109300.0,0.87292386]
[1748280345634,0.2470951,109310.0,109300.0,0.87292386]
[1748280347951,0.2470951,109310.0,109300.0,0.90715992]
[1748280349067,0.2470951,109310.0,109300.0,1.09014253]
[1748280349274,0.2161951,109310.0,109300.0,1.11758949]
[1748280349484,0.001,109310.0,109300.0,2.14750403]
[1748280349695,0.22055785,109310.0,109300.0,1.61564849]
[1748280349899,0.21141015,109310.0,109300.0,1.3758857]
[1748280350107,0.21141015,109310.0,109300.0,1.37445704]
[1748280350307,0.21141015,109310.0,109300.0,1.38360524]
[1748280350308,0.21140998,109310.0,109300.0,1.38360524]
[1748280350510,0.26656203,109310.0,109300.0,0.88743343]
[1748280350650,0.26656203,109310.0,109300.0,1.03375343]
[1748280350845,0.26656203,109310.0,109300.0,1.34939221]
[1748280351056,0.26656203,109310.0,109300.0,1.23503421]
[1748280351261,0.25741399,109310.0,109300.0,0.35971287]
[1748280351671,0.34695955,109310.0,109300.0,0.01971287]
[1748280352799,0.34695955,109310.0,109300.0,0.00874451]
[1748280357667,0.19213157,109300.0,109290.0,0.01096836]
[1748280357877,0.39945157,109300.0,109290.0,0.01096836]
[1748280358682,0.19214931,109290.0,109280.0,0.77737542]
[1748280359712,0.19214931,109290.0,109280.0,1.11737542]
[1748280359951,0.20129902,109290.0,109280.0,1.61843105]
[1748280360092,0.20129902,109290.0,109280.0,1.52147805]
[1748280360313,0.20129902,109290.0,109280.0,1.43176505]
[1748280360561,0.20129902,109290.0,109280.0,1.37121505]
[1748280360762,0.20129902,109290.0,109280.0,1.37321505]
[1748280361442,0.20129902,109290.0,109280.0,1.16174683]
[1748280361651,0.19214931,109290.0,109280.0,1.10007393]
[1748280361856,0.19214931,109290.0,109280.0,0.91705783]
[1748280361857,0.25554931,109290.0,109280.0,0.91705783]
[1748280362466,0.25554931,109290.0,109280.0,1.10922465]
[1748280362680,0.19214931,109290.0,109280.0,1.99581112]
[1748280362900,0.2104484,109290.0,109280.0,1.75438333]
[1748280363120,0.21959836,109290.0,109280.0,1.78598333]
[1748280363330,0.21959836,109290.0,109280.0,1.77683312]
[1748280363510,0.21959836,109290.0,109280.0,1.7859835]
[1748280364297,0.21959836,109290.0,109280.0,1.27285277]
[1748280364527,0.2104489,109290.0,109280.0,1.6169345]
[1748280366144,0.2104489,109290.0,109280.0,1.60778412]
[1748280368185,0.20129919,109290.0,109280.0,1.61140559]
[1748280369721,0.20129919,109290.0,109280.0,1.62016842]
[1748280369949,0.20129919,109290.0,109280.0,2.18620115]
[1748280371079,0.20129919,109290.0,109280.0,2.19535153]
[1748280371892,0.20129919,109290.0,109280.0,2.18620115]
[1748280372107,0.24686587,109310.0,109300.0,0.52298261]
[1748280372325,0.25601399,109310.0,109300.0,0.89667886]
[1748280372553,0.25601399,109310.0,109300.0,1.07051234]
[1748280372745,0.22391399,109310.0,109300.0,1.09022825]
[1748280372983,0.22391399,109310.0,109300.0,1.10852608]
[1748280373462,0.22691399,109310.0,109300.0,1.11767487]
[1748280373700,0.22891399,109310.0,109300.0,1.11767487]
[1748280374452,0.22391399,109310.0,109300.0,1.10852608]
[1748280374675,0.19311399,109310.0,109300.0,1.65756408]
[1748280375533,0.19311399,109310.0,109300.0,1.55034608]
[1748280376546,0.19311399,109310.0,109300.0,1.55949479]
[1748280376746,0.19311399,109310.0,109300.0,1.55034608]
[1748280376955,0.19311399,109310.0,109300.0,1.53299408]
[1748280377208,0.25411399,109310.0,109300.0,0.90724564]
[1748280377385,0.25411399,109310.0,109300.0,0.35971591]
[1748280378218,0.34365955,109310.0,109300.0,0.35971591]
[1748280378470,0.34365955,109310.0,109300.0,0.00876283]
[1748280381437,0.40681101,109310.0,109300.0,0.00876283]
[1748280385152,0.55313101,109310.0,109300.0,0.00876283]
[1748280387496,0.63375325,109310.0,109300.0,0.00876283]
[1748280387927,0.55313101,109310.0,109300.0,0.00876283]
[1748280391106,0.55313101,109310.0,109300.0,0.55629256]
[1748280393017,0.40681101,109310.0,109300.0,0.55629256]
[1748280393214,0.31726545,109310.0,109300.0,0.55629256]
[1748280393425,0.28686545,109310.0,109300.0,0.55629256]
[1748280393644,0.43318545,109310.0,109300.0,0.55629256]
[1748280394566,0.43318545,109310.0,109300.0,0.73927517]
[1748280394781,0.40258545,109310.0,109300.0,0.74842421]
[1748280395004,0.40258545,109310.0,109300.0,0.55629256]
[1748280395766,0.25626545,109310.0,109300.0,0.89629256]
[1748280395982,0.40258545,109310.0,109300.0,0.89629256]
[1748280397143,0.33943399,109310.0,109300.0,0.89629256]
[1748280397789,0.33943399,109310.0,109300.0,0.90724564]
[1748280399784,0.40083399,109310.0,109300.0,0.90724564]
[1748280401690,0.43105582,109310.0,109300.0,0.35971591]
[1748280401910,0.49037955,109310.0,109300.0,0.35971591]
[1748280402130,0.49037955,109310.0,109300.0,0.01971591]
[1748280402304,0.49037955,109310.0,109300.0,0.00876283]
[1748280402971,0.49037955,109310.0,109300.0,1.07927517]
[1748280402972,0.19311399,109310.0,109300.0,1.07927517]
[1748280403174,0.19311399,109310.0,109300.0,1.0884243]
[1748280403377,0.18396587,109310.0,109300.0,1.0884243]
[1748280403594,0.18396587,109310.0,109300.0,1.11587084]
[1748280404318,0.18396587,109310.0,109300.0,1.12682392]
[1748280405784,0.18396587,109310.0,109300.0,1.10852642]
[1748280406221,0.18396587,109310.0,109300.0,1.11767538]
[1748280406991,0.01929591,109310.0,109300.0,1.16627263]
[1748280407199,0.03759165,109310.0,109300.0,1.16627263]
[1748280407421,0.04673986,109310.0,109300.0,1.16627263]
[1748280407629,0.2297064,109310.0,109300.0,1.15712409]
[1748280407877,0.03759266,109310.0,109300.0,1.18086254]
[1748280408065,0.22055853,109310.0,109300.0,1.18086195]
[1748280408278,0.03759266,109310.0,109300.0,1.18086195]
[1748280408480,0.22055853,109310.0,109300.0,1.91887979]
[1748280408733,0.21141049,109310.0,109300.0,1.50927779]
[1748280408985,0.21141049,109310.0,109300.0,1.49832471]
[1748280409186,0.21141049,109310.0,109300.0,1.52852471]
[1748280409823,0.21141049,109310.0,109300.0,0.98099498]
[1748280410038,0.21141049,109310.0,109300.0,1.41292771]
[1748280410260,0.01929633,109310.0,109300.0,1.42207625]
[1748280410868,0.2022622,109310.0,109300.0,1.42207625]
[1748280411619,0.2022622,109310.0,109300.0,1.41292771]
[1748280411842,0.2022622,109310.0,109300.0,1.24864171]
[1748280413982,0.2022622,109310.0,109300.0,1.25958632]
[1748280416346,0.2022622,109310.0,109300.0,1.24864171]
[1748280418086,0.2022622,109310.0,109300.0,1.26693887]
[1748280418696,0.21141049,109310.0,109300.0,1.26693887]
[1748280420043,0.21141049,109310.0,109300.0,1.25779033]
[1748280420251,0.27731049,109310.0,109300.0,1.24864171]
[1748280420659,0.27731049,109310.0,109300.0,1.25779033]
[1748280422117,0.08519633,109310.0,109300.0,1.25779033]
[1748280422337,0.06154361,109310.0,109300.0,1.26693887]
[1748280423019,0.001,109310.0,109300.0,2.13007501]
[1748280423251,0.08823892,109330.0,109320.0,0.5503905]
[1748280423475,0.09738462,109330.0,109320.0,2.18322296]
[1748280423697,0.10653115,109330.0,109320.0,2.00438196]
[1748280423913,0.28946355,109330.0,109320.0,1.28046523]
[1748280424138,0.28946431,109330.0,109320.0,1.09051875]
[1748280424366,0.28946431,109330.0,109320.0,0.35971362]
[1748280424367,0.26202555,109330.0,109320.0,0.35971362]
[1748280424608,0.32762624,109330.0,109320.0,0.35971362]
[1748280424824,0.32762624,109330.0,109320.0,0.01971362]
[1748280425044,0.39762624,109330.0,109320.0,0.01971362]
[1748280425265,0.4871718,109330.0,109320.0,0.01971362]
[1748280425703,0.4871718,109330.0,109320.0,0.00876283]
[1748280425922,0.4891718,109330.0,109320.0,0.00876283]
[1748280426329,0.4911718,109330.0,109320.0,0.00876283]
[1748280427379,1.03870153,109330.0,109320.0,0.00876283]
[1748280427598,0.4911718,109330.0,109320.0,0.00876283]
[1748280428987,0.20126186,109310.0,109300.0,0.54752973]
[1748280429205,0.26396186,109310.0,109300.0,0.88752973]
[1748280430127,0.26396186,109310.0,109300.0,0.89629329]
[1748280430520,0.26396186,109310.0,109300.0,0.89729329]
[1748280431898,0.26396186,109310.0,109300.0,0.89829329]
[1748280433388,0.32328648,109310.0,109300.0,0.89829329]
[1748280434230,0.26396186,109310.0,109300.0,0.89829329]
[1748280434449,0.26396186,109310.0,109300.0,0.36171435]
[1748280434685,0.26396186,109310.0,109300.0,0.90924408]
[1748280435084,0.26396186,109310.0,109300.0,0.56924408]
[1748280435592,0.26396186,109310.0,109300.0,0.55829329]
[1748280436977,0.26396186,109310.0,109300.0,0.01076356]
[1748280437395,0.35350742,109310.0,109300.0,0.01076356]
[1748280438902,0.35350742,109310.0,109300.0,0.00976356]
[1748280439416,0.35450742,109310.0,109300.0,0.00976356]
[1748280440073,0.35450742,109310.0,109300.0,0.00876356]
[1748280440306,0.4228866,109310.0,109300.0,0.00876356]
[1748280443595,0.35450742,109310.0,109300.0,0.55629329]
[1748280443816,0.26496186,109310.0,109300.0,0.55629329]
[1748280444022,0.41128186,109310.0,109300.0,0.55629329]
[1748280445774,0.26496186,109310.0,109300.0,0.55629329]
[1748280445980,0.41128186,109310.0,109300.0,0.55629329]
[1748280446184,0.47070648,109310.0,109300.0,0.55629329]
[1748280447201,0.41128186,109310.0,109300.0,0.55629329]
[1748280452279,0.26496186,109310.0,109300.0,0.55629329]
[1748280452485,0.41128186,109310.0,109300.0,0.55629329]
[1748280454390,0.38018186,109310.0,109300.0,0.55629329]
[1748280454636,0.41058186,109310.0,109300.0,0.55629329]
[1748280454842,0.41058186,109310.0,109300.0,0.56724408]
[1748280455442,0.44931694,109310.0,109300.0,0.56724408]
[1748280455600,0.20226186,109310.0,109300.0,0.56724408]
[1748280455814,0.34858186,109310.0,109300.0,0.56724408]
[1748280456427,0.20226186,109310.0,109300.0,0.56724408]
[1748280456610,0.21141007,109310.0,109300.0,0.79007582]
[1748280456995,0.001,109310.0,109300.0,2.07353575]
[1748280457197,0.02844344,109310.0,109300.0,2.07353575]
[1748280457582,0.01929549,109310.0,109300.0,2.07353575]
[1748280457793,0.02744344,109310.0,109300.0,2.07353575]
[1748280457988,0.01829549,109310.0,109300.0,2.07453575]
[1748280458505,0.01829549,109310.0,109300.0,2.07817479]
[1748280458747,0.02744344,109310.0,109300.0,2.07917479]
[1748280458961,0.21041015,109310.0,109300.0,1.57818946]
[1748280459166,0.27401015,109310.0,109300.0,0.58203225]
[1748280459377,0.2648622,109310.0,109300.0,0.76501486]
[1748280459589,0.2648622,109310.0,109300.0,0.7741639]
[1748280459767,0.2648622,109310.0,109300.0,1.1141639]
[1748280459978,0.2648622,109310.0,109300.0,1.12331277]
[1748280460217,0.2319622,109310.0,109300.0,1.12331277]
[1748280460642,0.2650622,109310.0,109300.0,0.91288312]
[1748280460779,0.2650622,109310.0,109300.0,0.92383868]
[1748280461605,0.2650622,109310.0,109300.0,0.03630895]
[1748280461817,0.2650622,109310.0,109300.0,0.58383868]
[1748280463447,0.2650622,109310.0,109300.0,0.56924885]
[1748280484084,0.24496437,109320.0,109310.0,0.00914821]
[1748280484353,0.21040613,109320.0,109310.0,0.75793988]
[1748280484588,0.03282817,109330.0,109320.0,0.55039032]
[1748280484803,0.03282817,109330.0,109320.0,2.10082873]
[1748280485023,0.0419742,109330.0,109320.0,3.02201619]
[1748280485238,0.2340533,109330.0,109320.0,1.14172829]
[1748280485494,0.2340533,109330.0,109320.0,1.32060555]
[1748280485729,0.2340533,109330.0,109320.0,1.32975292]
[1748280485968,0.2340533,109330.0,109320.0,1.32975308]
[1748280486189,0.2340533,109330.0,109320.0,1.36226649]
[1748280486411,0.2360533,109330.0,109320.0,1.35311946]
[1748280486601,0.22690702,109330.0,109320.0,1.34397218]
[1748280486799,0.22690702,109330.0,109320.0,1.35311946]
[1748280487028,0.22690702,109330.0,109320.0,1.36226666]
[1748280487248,0.22890702,109330.0,109320.0,1.36226666]
[1748280487471,0.19657649,109330.0,109320.0,1.90979639]
[1748280489553,0.19657649,109330.0,109320.0,0.81473693]
[1748280489771,0.19657649,109330.0,109320.0,1.90979639]
[1748280490593,0.19657649,109330.0,109320.0,1.92988103]
[1748280491435,0.20572269,109330.0,109320.0,1.92988103]
[1748280491677,0.21486931,109330.0,109320.0,1.93902806]
[1748280491889,0.02279029,109330.0,109320.0,1.96902723]
[1748280492095,0.0319359,109330.0,109320.0,1.95442441]
[1748280492298,0.0319359,109330.0,109320.0,1.98652441]
[1748280492506,0.04108226,109330.0,109320.0,1.98652441]
[1748280493224,0.05022871,109330.0,109320.0,1.98652441]
[1748280493547,0.23316169,109330.0,109320.0,1.05866481]
[1748280493769,0.26642302,109330.0,109320.0,0.35970108]
[1748280493989,0.26642302,109330.0,109320.0,0.01970108]
[1748280494222,0.35596858,109330.0,109320.0,0.01970108]
[1748280494437,0.35596858,109330.0,109320.0,0.00876356]
[1748280494650,0.42596858,109330.0,109320.0,0.00876356]
[1748280496339,0.46256515,109330.0,109320.0,0.00876356]
[1748280498743,0.42596858,109330.0,109320.0,0.00876356]
[1748280499533,0.09279029,109330.0,109320.0,1.08838988]
[1748280499736,0.20572269,109330.0,109320.0,2.45474813]
[1748280499948,0.21486922,109330.0,109320.0,1.01735255]
[1748280500149,0.21486922,109330.0,109320.0,1.57402948]
[1748280500353,0.21486922,109330.0,109320.0,1.52471]
[1748280500566,0.21486922,109330.0,109320.0,1.42261]
[1748280500739,0.19657657,109330.0,109320.0,1.4134628]
[1748280500971,0.18743004,109330.0,109320.0,1.0993274]
[1748280501664,0.18743004,109330.0,109320.0,1.2824064]
[1748280501882,0.18743004,109330.0,109320.0,1.2829064]
[1748280503198,0.18743004,109330.0,109320.0,1.2819064]
[1748280503400,0.18743004,109330.0,109320.0,1.2819054]